bitfinex/quotes_SOLUSD_20260102
["timestamp","ask_amount","ask_price","bid_price","bid_amount"]
[1767370293642,2.14659532,129.46,129.42,22.51088827]
[1767370295034,2.80800108,129.46,129.42,22.51088827]
[1767370295625,2.80800108,129.47,129.43,0.68439601]
[1767370296129,2.80800108,129.46,129.42,21.82649226]
[1767370296514,2.14659532,129.45,129.42,14.1]
[1767370296717,0.66140576,129.43,129.39,14.78439601]
[1767370297012,0.66140576,129.42,129.38,0.68439601]
[1767370297212,2.80800108,129.42,129.39,7.72827407]
[1767370297518,2.80800108,129.41,129.38,7.72880641]
[1767370298118,41.13543325,129.46,129.38,7.72880641]
[1767370298323,2.14659532,129.42,129.38,8.41320242]
[1767370298525,2.80800108,129.42,129.38,8.41320242]
[1767370298723,0.66140576,129.41,129.37,21.82969419]
[1767370299035,2.80800108,129.41,129.37,21.82969419]
[1767370299737,2.14659532,129.4,129.37,21.82969419]
[1767370300314,0.66140576,129.41,129.38,7.72909288]
[1767370300833,14.1,129.45,129.4,15.68439601]
[1767370300834,0.66140576,129.44,129.4,15.68439601]
[1767370301032,2.80800108,129.46,129.41,0.68439601]
[1767370301438,2.80800108,129.46,129.41,14.78439601]
[1767370302638,6.41224406,129.46,129.41,14.78439601]
[1767370303010,6.41224406,129.46,129.42,7.72678102]
[1767370303423,5.7508383,129.47,129.43,0.68439601]
[1767370303615,6.41224406,129.47,129.43,0.68439601]
[1767370303815,5.7508383,129.46,129.42,27.04373357]
[1767370304138,5.7508383,129.46,129.42,27.72812958]
[1767370304721,0.66140576,129.45,129.42,27.04373357]
[1767370305232,6.41224406,129.46,129.42,27.72812958]
[1767370305436,6.41224406,129.47,129.42,27.72812958]
[1767370305828,5.7508383,129.46,129.42,27.72812958]
[1767370306216,6.41224406,129.46,129.42,27.72812958]
[1767370307144,6.41224406,129.46,129.42,7.72678102]
[1767370307324,6.41224406,129.46,129.41,14.78439601]
[1767370307325,6.41224406,129.43,129.41,14.1]
[1767370307525,6.41224406,129.43,129.39,22.51264301]
[1767370308244,5.7508383,129.42,129.39,21.828247]
[1767370308559,6.41224406,129.41,129.36,40.76108254]
[1767370308838,6.41224406,129.4,129.36,7.73010837]
[1767370309046,5.7508383,129.39,129.36,7.73010837]
[1767370309234,6.41224406,129.39,129.36,7.73010837]
[1767370309617,5.7508383,129.4,129.36,7.73010837]
[1767370309833,0.66140576,129.39,129.36,7.73010837]
[1767370310229,6.41224406,129.41,129.36,42.74041656]
[1767370310639,6.41224406,129.41,129.36,27.74041656]
[1767370310822,6.41224406,129.41,129.36,56.84041656]
[1767370311422,0.66140576,129.43,129.37,6.43523431]
[1767370311627,6.41224406,129.44,129.39,6.43523431]
[1767370311833,5.7508383,129.42,129.4,14.1]
[1767370312036,5.7508383,129.43,129.4,14.1]
[1767370312642,5.7508383,129.42,129.39,14.1]
[1767370312843,5.7508383,129.43,129.4,0.68439601]
[1767370313146,5.7508383,129.43,129.39,7.72857253]
[1767370313343,5.7508383,129.43,129.39,21.82857253]
[1767370313553,5.7508383,129.42,129.39,21.82857253]
[1767370313732,5.7508383,129.42,129.39,7.72857253]
[1767370314154,7.72560672,129.44,129.38,21.82887503]
[1767370314155,6.41224406,129.41,129.38,21.82887503]
[1767370314547,6.41224406,129.41,129.38,7.72887503]
[1767370314754,6.41224406,129.41,129.37,14.1]
[1767370315452,6.41224406,129.41,129.38,7.72901598]
[1767370316462,6.432423,129.39,129.35,7.7306816]
[1767370316760,6.432423,129.36,129.33,7.73171342]
[1767370316972,0.6815847,129.36,129.32,0.68739969]
[1767370317264,6.432423,129.36,129.33,7.7321299]
[1767370317557,6.432423,129.36,129.32,7.7325345]
[1767370317760,5.7508383,129.35,129.32,7.7325345]
[1767370318839,5.7508383,129.34,129.31,21.83312488]
[1767370320053,6.432423,129.35,129.31,21.83312488]
[1767370320244,6.432423,129.35,129.31,41.16650976]
[1767370320446,6.432423,129.35,129.31,41.85390945]
[1767370320948,6.432423,129.37,129.32,0.68739969]
[1767370321145,6.432423,129.36,129.32,0.68739969]
[1767370321341,5.7508383,129.35,129.31,41.85390945]
[1767370321540,6.432423,129.34,129.31,21.83312488]
[1767370321855,5.7508383,129.33,129.3,7.73374816]
[1767370322053,6.432423,129.32,129.28,35.16919441]
[1767370322256,0.6815847,129.36,129.29,7.73417454]
[1767370322555,6.432423,129.32,129.29,7.73417454]
[1767370322760,0.6815847,129.29,129.28,0.2]
[1767370322930,6.32759715,129.29,129.25,7.93668954]
[1767370323134,5.7508383,129.33,129.25,7.93668954]
[1767370323135,0.5815847,129.33,129.28,7.73508781]
[1767370323445,14.1,129.35,129.27,7.73557006]
[1767370323446,5.7508383,129.3,129.27,7.73557006]
[1767370324028,5.7508383,129.3,129.26,0.68739969]
[1767370324246,5.7508383,129.3,129.26,8.42358552]
[1767370324628,5.7508383,129.3,129.27,7.73561976]
[1767370325135,5.7508383,129.3,129.25,0.2]
[1767370325136,5.7508383,129.28,129.25,0.2]
[1767370325338,5.7508383,129.28,129.25,7.93651193]
[1767370325748,5.7508383,129.29,129.26,7.73629992]
[1767370326063,5.7508383,129.28,129.26,7.73629992]
[1767370326263,0.47202903,129.26,129.22,48.44634747]
[1767370326438,0.099,129.27,129.22,8.42588526]
[1767370326632,5.7508383,129.24,129.22,7.73848557]
[1767370326853,8.11690546,129.28,129.22,8.426099]
[1767370327057,5.7508383,129.27,129.23,0.68739969]
[1767370327435,5.7508383,129.28,129.23,0.68739969]
[1767370327836,5.7508383,129.28,129.23,14.80739969]
[1767370328043,5.7508383,129.28,129.24,0.68739969]
[1767370328253,5.7508383,129.27,129.22,42.08554964]
[1767370328464,5.7508383,129.26,129.22,22.546099]
[1767370328661,5.7508383,129.26,129.22,8.426099]
[1767370329144,5.7508383,129.27,129.23,0.68739969]
[1767370330056,5.7508383,129.26,129.23,0.68739969]
[1767370330259,5.7508383,129.27,129.23,0.68739969]
[1767370330559,5.7508383,129.26,129.22,7.73869931]
[1767370330870,5.7508383,129.26,129.22,22.546099]
[1767370331359,5.7508383,129.26,129.22,8.426099]
[1767370331856,5.7508383,129.25,129.21,21.85921073]
[1767370332061,5.7508383,129.24,129.21,21.85921073]
[1767370332236,5.7508383,129.24,129.21,7.73921073]
[1767370332432,5.7208383,129.24,129.21,7.73921073]
[1767370332636,5.7208383,129.24,129.2,0.68739969]
[1767370332855,5.7508383,129.24,129.2,0.68739969]
[1767370333364,14.12,129.29,129.22,0.68739969]
[1767370333365,6.132423,129.27,129.22,0.68739969]
[1767370333662,0.3815847,129.27,129.22,0.68739969]
[1767370333862,0.3815847,129.29,129.23,0.68739969]
[1767370334176,5.7508383,129.28,129.24,0.68739969]
[1767370334658,0.3815847,129.29,129.24,0.68739969]
[1767370334859,6.132423,129.29,129.24,0.68739969]
[1767370335265,6.132423,129.29,129.25,7.7369439]
[1767370336164,5.7508383,129.29,129.25,8.42434359]
[1767370336367,0.3815847,129.31,129.26,0.68739969]
[1767370336664,5.7508383,129.29,129.26,0.68739969]
[1767370336862,5.7508383,129.29,129.25,7.7369439]
[1767370337041,5.7508383,129.29,129.25,8.42434359]
[1767370337438,5.7508383,129.29,129.25,0.68739969]
[1767370337439,5.7508383,129.28,129.25,0.68739969]
[1767370337769,5.7508383,129.28,129.24,7.73727588]
[1767370337770,5.7508383,129.27,129.24,7.73727588]
[1767370338666,0.10179759,129.28,129.25,7.73691022]
[1767370338859,5.7508383,129.27,129.25,7.73691022]
[1767370339059,5.85537781,129.26,129.23,14.12]
[1767370339263,5.85537781,129.26,129.22,14.80739969]
[1767370339567,0.3815847,129.28,129.21,0.68739969]
[1767370339860,5.7508383,129.25,129.22,7.73872246]
[1767370340066,0.3815847,129.28,129.22,8.42612215]
[1767370340258,7.7347554,129.29,129.22,8.42612215]
[1767370340259,0.099,129.27,129.22,8.42612215]
[1767370340441,5.8498383,129.27,129.22,8.42612215]
[1767370340648,5.7508383,129.26,129.22,8.42612215]
[1767370342876,102.7815847,129.31,129.25,0.68739969]
[1767370343048,5.7508383,129.29,129.25,0.68739969]
[1767370343359,5.7508383,129.29,129.25,8.42416633]
[1767370343562,6.12959715,129.28,129.23,0.68739969]
[1767370343747,5.7508383,129.27,129.23,0.68739969]
[1767370343953,5.7508383,129.27,129.23,8.42521832]
[1767370345848,8.11554635,129.3,129.24,0.68739969]
[1767370346050,5.7508383,129.29,129.24,0.68739969]
[1767370346255,5.7508383,129.28,129.24,0.68739969]
[1767370346455,5.7508383,129.29,129.24,0.68739969]
[1767370346657,5.7508383,129.29,129.24,6.43823799]
[1767370347165,5.7508383,129.29,129.25,0.67109431]
[1767370347366,0.3815847,129.3,129.25,0.67109431]
[1767370347571,5.7508383,129.29,129.25,0.67109431]
[1767370347959,5.7508383,129.29,129.25,8.40745125]
[1767370349663,0.3815847,129.3,129.25,8.40745125]
[1767370349975,5.7508383,129.29,129.25,8.40745125]
[1767370350180,5.7508383,129.28,129.24,8.40842252]
[1767370350561,9.37148886,129.28,129.24,8.40842252]
[1767370352469,3.36392881,129.28,129.24,8.40842252]
[1767370354886,3.36392881,129.28,129.25,0.66705314]
[1767370355070,3.46292881,129.3,129.25,0.66705314]
[1767370355471,3.36392881,129.29,129.25,0.66705314]
[1767370356481,3.36392881,129.29,129.26,7.73634535]
[1767370356793,0.099,129.3,129.26,7.73634535]
[1767370356968,3.36392881,129.29,129.26,7.73634535]
[1767370357290,3.36392881,129.29,129.26,8.40339849]
[1767370357463,3.46292881,129.3,129.26,8.40339849]
[1767370358086,3.36392881,129.29,129.25,8.40373222]
[1767370359188,3.36392881,129.27,129.24,8.40428316]
[1767370359789,3.36392881,129.29,129.25,8.40399282]
[1767370360191,3.36392881,129.29,129.26,0.66705314]
[1767370361380,3.36392881,129.28,129.24,8.40434397]
[1767370361574,3.36392881,129.28,129.25,7.73686605]
[1767370361775,3.36392881,129.29,129.25,8.40391919]
[1767370361975,3.74268766,129.29,129.25,8.40391919]
[1767370363295,0.37875885,129.29,129.25,8.40391919]
[1767370363791,3.74268766,129.29,129.25,8.40391919]
[1767370363980,8.11572699,129.3,129.25,0.66705314]
[1767370364176,3.36392881,129.29,129.25,0.66705314]
[1767370364995,3.46292881,129.29,129.25,0.66705314]
[1767370366083,3.46292881,129.29,129.25,8.40396238]
[1767370366278,3.36392881,129.28,129.25,8.40396238]
[1767370366489,3.36392881,129.28,129.25,0.66705314]
[1767370366693,3.46292881,129.29,129.25,8.40382598]
[1767370367081,0.099,129.29,129.25,8.40382598]
[1767370367287,3.36392881,129.28,129.25,0.66705314]
[1767370367799,3.36392881,129.28,129.24,8.40428823]
[1767370368098,0.099,129.29,129.25,0.66705314]
[1767370368295,3.46292881,129.29,129.25,0.66705314]
[1767370368505,0.3815847,129.3,129.25,0.66705314]
[1767370368684,3.74551351,129.3,129.26,0.66705314]
[1767370369292,3.36392881,129.29,129.26,0.66705314]
[1767370369894,0.3815847,129.3,129.26,0.66705314]
[1767370370207,0.3815847,129.3,129.26,8.40327919]
[1767370370208,3.36392881,129.29,129.26,8.40327919]
[1767370371300,3.74551351,129.3,129.26,8.40327919]
[1767370371503,11.09478679,129.36,129.29,0.66705314]
[1767370371687,3.46292881,129.36,129.31,0.66705314]
[1767370372002,3.36392881,129.35,129.31,0.66705314]
[1767370372182,3.36392881,129.36,129.32,8.39925539]
[1767370372383,3.36392881,129.36,129.32,27.73114527]
[1767370372384,3.74268766,129.36,129.32,27.73114527]
[1767370372699,3.74268766,129.36,129.32,8.39925539]
[1767370373282,3.36392881,129.35,129.32,8.39925539]
[1767370374484,3.46292881,129.37,129.32,8.39925539]
[1767370374686,0.3815847,129.38,129.33,0.66705314]
[1767370374890,3.74551351,129.38,129.34,0.66705314]
[1767370375089,3.36392881,129.37,129.34,0.66705314]
[1767370375489,3.46392881,129.4,129.36,0.66705314]
[1767370376221,3.36392881,129.39,129.36,0.66705314]
[1767370376385,3.56292881,129.4,129.36,8.39739359]
[1767370376581,3.46392881,129.4,129.36,8.39739359]
[1767370377811,0.1,129.4,129.36,8.39739359]
[1767370378004,3.46392881,129.4,129.37,0.67105523]
[1767370378208,3.46392881,129.4,129.35,8.40191516]
[1767370378209,3.36392881,129.38,129.35,8.40191516]
[1767370378415,3.36392881,129.37,129.33,0.67105523]
[1767370378584,3.36392881,129.37,129.33,14.79105523]
[1767370378989,3.4657264,129.38,129.34,0.67105523]
[1767370379197,3.4657264,129.38,129.34,8.40260733]
[1767370379402,3.36392881,129.38,129.35,0.67105523]
[1767370379625,3.36392881,129.39,129.35,0.67105523]
[1767370379824,3.36392881,129.39,129.35,8.40198276]
[1767370380001,3.36392881,129.38,129.35,8.40198276]
[1767370380197,0.1,129.4,129.35,0.67105523]
[1767370380402,3.36392881,129.39,129.35,7.7304858]
[1767370380601,3.36392881,129.39,129.37,0.67105523]
[1767370380802,0.1,129.4,129.37,0.67105523]
[1767370380803,3.46392881,129.4,129.37,0.67105523]
[1767370381029,3.36392881,129.38,129.35,8.40179642]
[1767370381216,3.36392881,129.39,129.36,8.40137822]
[1767370381602,3.46392881,129.4,129.37,0.67105523]
[1767370382317,1e-08,129.4,129.39,0.67105523]
[1767370382716,3.73991805,129.4,129.36,0.67105523]
[1767370382936,3.36392881,129.39,129.37,0.67105523]
[1767370383123,1e-08,129.4,129.38,0.67105523]
[1767370383124,3.36392882,129.4,129.38,0.67105523]
[1767370383310,1e-08,129.4,129.38,0.67105523]
[1767370384421,1e-08,129.4,129.39,0.67105523]
[1767370385527,1e-08,129.4,129.38,7.72862806]
[1767370385707,1e-08,129.4,129.38,8.39968329]
[1767370387315,1e-08,129.4,129.38,7.72862806]
[1767370387715,1e-08,129.4,129.38,8.39968329]
[1767370388517,166.3815847,129.46,129.41,0.67105523]
[1767370388727,8.10615944,129.46,129.41,0.67105523]
[1767370388916,3.36392881,129.44,129.41,0.67105523]
[1767370389112,3.36392881,129.43,129.4,7.72753656]
[1767370389305,3.36392881,129.43,129.4,8.39859179]
[1767370389505,3.36392881,129.42,129.38,0.67105523]
[1767370389715,3.36392881,129.41,129.38,0.67105523]
[1767370389926,3.36392881,129.41,129.38,8.40002693]
[1767370390136,0.37598923,129.42,129.38,8.40002693]
[1767370390307,3.36392881,129.41,129.38,8.40002693]
[1767370391011,3.36392881,129.42,129.38,8.40002693]
[1767370391630,3.36392881,129.42,129.39,0.67105523]
[1767370392010,3.36392881,129.44,129.39,0.67105523]
[1767370392324,8.10674504,129.45,129.39,0.67105523]
[1767370392526,3.36392881,129.44,129.39,0.67105523]
[1767370392712,0.099,129.44,129.39,0.67105523]
[1767370392914,3.36392881,129.43,129.39,0.67105523]
[1767370393115,3.36392881,129.43,129.4,0.67105523]
[1767370393633,3.36392881,129.44,129.4,0.67105523]
[1767370393830,3.36392881,129.45,129.4,0.67105523]
[1767370394134,8.10627574,129.46,129.4,0.67105523]
[1767370394340,3.74268766,129.44,129.4,0.67105523]
[1767370394530,3.36392881,129.44,129.4,0.67105523]
[1767370395351,3.36392881,129.44,129.41,0.67105523]
[1767370396627,8.10658149,129.45,129.41,0.67105523]
[1767370396832,3.36392881,129.44,129.41,0.67105523]
[1767370399928,7.82368839,129.46,129.42,0.67105523]
[1767370400239,3.36392881,129.44,129.42,0.67105523]
[1767370400442,3.36392881,129.45,129.42,0.67105523]
[1767370400745,3.81697335,129.44,129.4,7.7276789]
[1767370400949,3.36392881,129.44,129.4,7.7276789]
[1767370401156,3.81697335,129.44,129.4,7.7276789]
[1767370401343,4.05652824,129.43,129.39,7.7283076]
[1767370401539,3.36392881,129.42,129.39,21.8283076]
[1767370401846,4.05652824,129.43,129.39,21.8283076]
[1767370402050,4.05652824,129.43,129.39,7.7283076]
[1767370402256,3.36392881,129.44,129.41,7.72701206]
[1767370402435,4.05894799,129.45,129.41,7.72701206]
[1767370402755,3.36392881,129.44,129.41,0.67105523]
[1767370402956,3.81697335,129.44,129.41,0.67105523]
[1767370403149,3.36392881,129.43,129.4,8.39872826]
[1767370403355,4.05652824,129.43,129.39,0.67105523]
[1767370403649,3.36392881,129.43,129.4,8.3988943]
[1767370403853,3.81697335,129.44,129.4,8.39877849]
[1767370404051,3.36392881,129.43,129.4,8.39877849]
[1767370404434,0.45304454,129.44,129.4,8.39877849]
[1767370404736,3.36392881,129.43,129.4,8.39877849]
[1767370405051,4.05652824,129.43,129.4,7.72780445]
[1767370405445,4.05652824,129.43,129.39,8.39933481]
[1767370406854,0.69259943,129.43,129.39,8.39933481]
[1767370407035,3.36392881,129.42,129.39,8.39933481]
[1767370407542,0.68350211,129.41,129.39,7.72827958]
[1767370407748,3.36392881,129.42,129.39,8.39385948]
[1767370407945,0.46444644,129.41,129.39,7.72827958]
[1767370408151,3.36392881,129.42,129.39,0.6655799]
[1767370408348,0.46444644,129.42,129.38,14.1]
[1767370408554,4.04524036,129.41,129.38,21.82906202]
[1767370408845,4.04743092,129.42,129.38,22.49464192]
[1767370409241,4.04743092,129.42,129.38,14.7655799]
[1767370409447,3.36392881,129.41,129.38,14.7655799]
[1767370409964,3.36392881,129.41,129.38,22.49473741]
[1767370410663,4.04743092,129.42,129.38,22.49473741]
[1767370411053,3.36392881,129.44,129.39,0.6655799]
[1767370411255,0.68350211,129.45,129.4,0.6655799]
[1767370411442,3.36392881,129.44,129.4,0.6655799]
[1767370411766,3.36392881,129.43,129.4,0.6655799]
[1767370412155,3.82837525,129.44,129.41,0.6655799]
[1767370412657,2.14772663,129.44,129.41,0.6655799]
[1767370413055,0.68131155,129.43,129.4,7.72741306]
[1767370413361,2.14772663,129.45,129.41,0.6655799]
[1767370413754,2.61217307,129.45,129.41,0.6655799]
[1767370414060,2.83122874,129.46,129.41,0.6655799]
[1767370414262,2.14772663,129.45,129.42,8.39236092]
[1767370414939,2.14772663,129.45,129.42,0.6655799]
[1767370416867,2.14772663,129.44,129.42,0.6655799]
[1767370419372,2.14772663,129.44,129.41,8.39265601]
[1767370419760,0.46444644,129.45,129.41,8.39265601]
[1767370419967,0.68350211,129.43,129.41,7.72707611]
[1767370420262,8.40759188,129.47,129.42,0.6655799]
[1767370420484,2.61217307,129.46,129.42,0.6655799]
[1767370420654,0.46444644,129.46,129.42,0.6655799]
[1767370420846,2.14772663,129.45,129.42,0.6655799]
[1767370421548,2.61217307,129.48,129.44,0.6655799]
[1767370422358,0.46444644,129.48,129.44,0.6655799]
[1767370422556,4.13378376,129.49,129.45,0.6655799]
[1767370422959,0.1,129.49,129.46,0.6655799]
[1767370423557,0.1,129.49,129.46,8.38980359]
[1767370423761,2.24772663,129.49,129.46,8.38980359]
[1767370424162,2.14772663,129.48,129.46,8.38980359]
[1767370424565,2.14772663,129.48,129.47,0.6655799]
[1767370425377,2.24772663,129.49,129.47,0.6655799]
[1767370426173,0.1,129.49,129.47,0.6655799]
[1767370426370,0.1,129.49,129.47,8.38928742]
[1767370426572,2.24772663,129.49,129.47,0.6655799]
[1767370427382,0.1,129.49,129.47,0.6655799]
[1767370427584,2.24772663,129.49,129.47,0.6655799]
[1767370428275,0.1,129.51,129.48,0.6655799]
[1767370428478,1e-08,129.51,129.5,0.6655799]
[1767370428674,22.3880304,129.52,129.49,0.6655799]
[1767370429379,2.83122874,129.56,129.51,2.4450867]
[1767370429578,0.68350211,129.55,129.51,21.82089418]
[1767370429792,0.68350211,129.56,129.51,58.27214949]
[1767370430082,2.83122874,129.56,129.51,58.27214949]
[1767370430279,0.68350211,129.56,129.51,58.27214949]
[1767370430487,2.83122874,129.56,129.51,56.12442286]
[1767370430668,2.83122874,129.55,129.51,14.1]
[1767370431069,0.68350211,129.55,129.51,21.82139551]
[1767370431579,2.83122874,129.55,129.51,21.82139551]
[1767370431901,0.68350211,129.55,129.51,21.82139551]
[1767370432476,0.1,129.58,129.54,2.14772663]
[1767370432675,0.1,129.59,129.57,2.14772663]
[1767370432880,0.1,129.59,129.56,2.14772663]
[1767370433075,0.1,129.59,129.57,2.14772663]
[1767370433488,0.1,129.59,129.56,14.1]
[1767370433671,0.1,129.59,129.57,7.71783591]
[1767370434969,0.1,129.59,129.57,9.86556254]
[1767370435171,0.1,129.59,129.57,24.86556254]
[1767370435369,0.1,129.59,129.57,7.71783591]
[1767370436176,0.1,129.59,129.57,9.86556254]
[1767370436369,0.1,129.59,129.57,24.86556254]
[1767370437086,1e-08,129.59,129.57,22.71783591]
[1767370437385,1e-08,129.59,129.57,44.16015233]
[1767370437589,1e-08,129.59,129.58,2.14772663]
[1767370438070,2.86377675,129.64,129.58,2.14772663]
[1767370438480,0.71605012,129.63,129.59,7.7166448]
[1767370438681,0.71605012,129.63,129.59,21.8166448]
[1767370438881,2.14772663,129.64,129.59,38.96437143]
[1767370439178,4.02855143,129.66,129.63,2.14772663]
[1767370439378,0.71605012,129.67,129.63,14.1]
[1767370439581,0.71605012,129.66,129.63,14.1]
[1767370440171,4.74308841,129.7,129.65,17.14772663]
[1767370440383,4.74308841,129.7,129.66,16.24772663]
[1767370440567,0.71605012,129.7,129.66,23.95974729]
[1767370440772,0.71605012,129.72,129.67,17.14772663]
[1767370441093,0.71605012,129.72,129.68,14.1]
[1767370441294,2.86377675,129.71,129.64,15.0]
[1767370441471,2.86377675,129.71,129.66,2.14772663]
[1767370441676,0.71605012,129.71,129.66,9.86019033]
[1767370441877,25.81894832,129.73,129.68,2.14772663]
[1767370442084,18.11016231,129.73,129.69,2.14772663]
[1767370442293,17.39411219,129.73,129.7,2.14772663]
[1767370442506,17.39411219,129.73,129.71,7.70948005]
[1767370442681,17.39411219,129.73,129.72,14.08]
[1767370443014,17.39411219,129.73,129.7,14.08]
[1767370443015,18.11016231,129.73,129.7,14.08]
[1767370443790,20.25788894,129.73,129.67,2.14772663]
[1767370444091,25.81848629,129.73,129.68,14.08]
[1767370444395,25.81848629,129.73,129.67,9.85923487]
[1767370444396,2.14772663,129.72,129.69,14.08]
[1767370444780,0.71605012,129.71,129.69,14.08]
[1767370444981,20.25788894,129.73,129.69,14.08]
[1767370445188,17.39411219,129.73,129.71,2.14772663]
[1767370445391,0.71605012,129.76,129.72,14.08]
[1767370445784,2.14772663,129.75,129.72,14.08]
[1767370445988,2.86377675,129.76,129.72,14.08]
[1767370446202,2.86377675,129.75,129.69,9.85818685]
[1767370446401,2.86377675,129.75,129.71,14.08]
[1767370446592,0.71605012,129.75,129.71,21.78943949]
[1767370447480,0.71605012,129.75,129.71,7.70943949]
[1767370447697,0.71605012,129.77,129.72,14.08]
[1767370447889,0.71605012,129.77,129.72,31.22772663]
[1767370448097,0.71605012,129.77,129.72,17.14772663]
[1767370448282,0.71605012,129.77,129.73,14.08]
[1767370448283,2.86377675,129.76,129.73,14.08]
[1767370448483,0.71605012,129.75,129.73,14.08]
[1767370448782,2.86377675,129.77,129.73,21.78823752]
[1767370448986,0.71605012,129.79,129.73,23.93596415]
[1767370449190,2.14772663,129.78,129.73,23.93596415]
[1767370449400,0.71605012,129.79,129.73,23.93596415]
[1767370449700,2.86377675,129.79,129.74,14.08]
[1767370449897,2.14772663,129.78,129.74,14.08]
[1767370450593,0.71605012,129.74,129.73,14.08]
[1767370450792,6.43905862,129.74,129.73,14.08]
[1767370451103,5.7230085,129.74,129.71,14.08]
[1767370451576,0.71605012,129.75,129.71,14.08]
[1767370451784,5.7230085,129.74,129.71,14.08]
[1767370452086,5.7230085,129.74,129.7,7.70989507]
[1767370452292,5.7230085,129.73,129.7,21.78989507]
[1767370452694,24.98727524,129.78,129.7,21.78989507]
[1767370452695,0.71605012,129.72,129.7,14.08]
[1767370452888,0.71605012,129.72,129.68,14.08]
[1767370453083,5.7230085,129.71,129.68,14.08]
[1767370453284,0.71605012,129.72,129.68,21.79122884]
[1767370453483,6.43905862,129.72,129.69,7.71059338]
[1767370454000,5.7230085,129.72,129.69,21.79059338]
[1767370454614,5.7230085,129.72,129.7,7.71004715]
[1767370454801,5.7230085,129.72,129.69,21.79050976]
[1767370455119,5.7230085,129.71,129.69,14.08]
[1767370455312,5.7230085,129.7,129.69,21.79069473]
[1767370455495,5.7230085,129.71,129.69,21.79069473]
[1767370455893,5.7230085,129.7,129.68,7.71094163]
[1767370456107,6.43905862,129.69,129.66,7.71209479]
[1767370456300,0.71605012,129.72,129.66,7.71209479]
[1767370456514,0.71605012,129.7,129.66,7.71209479]
[1767370456708,5.7230085,129.68,129.66,7.71209479]
[1767370456912,5.7230085,129.68,129.65,21.79291859]
[1767370457209,5.7230085,129.66,129.63,7.71369057]
[1767370457513,5.7230085,129.65,129.63,7.71386206]
[1767370458041,5.7230085,129.65,129.64,7.71366862]
[1767370458195,5.7230085,129.66,129.64,7.71366862]
[1767370459004,5.7230085,129.66,129.63,7.71426367]
[1767370459522,0.71605012,129.68,129.62,34.28644107]
[1767370459523,6.43905862,129.64,129.62,22.71464776]
[1767370459726,5.7230085,129.64,129.62,22.71464776]
[1767370460232,5.7230085,129.63,129.62,7.7148311]
[1767370461204,5.7230085,129.65,129.62,27.00197814]
[1767370461525,5.7230085,129.67,129.63,15.0]
[1767370462034,5.7230085,129.66,129.63,15.0]
[1767370462738,0.71605012,129.68,129.63,15.0]
[1767370462927,5.7230085,129.65,129.63,15.0]
[1767370463119,6.43905862,129.68,129.63,15.0]
[1767370463315,5.7230085,129.67,129.64,7.71366862]
[1767370463550,5.7230085,129.67,129.64,26.99784017]
[1767370464318,5.7230085,129.68,129.64,26.99784017]
[1767370464515,0.71605012,129.7,129.65,15.0]
[1767370464727,5.7230085,129.72,129.67,15.0]
[1767370464928,0.71605012,129.75,129.69,15.0]
[1767370465238,6.43905862,129.75,129.7,26.9853508]
[1767370465730,5.7230085,129.74,129.7,26.9853508]
[1767370466351,5.7230085,129.73,129.7,26.9853508]
[1767370467041,5.7230085,129.74,129.7,26.9853508]
[1767370467237,6.43905862,129.75,129.7,26.9853508]
[1767370467417,5.7230085,129.74,129.7,26.9853508]
[1767370468944,5.7230085,129.73,129.7,26.9853508]
[1767370469535,5.7230085,129.74,129.7,26.9853508]
[1767370470459,5.7230085,129.74,129.71,15.0]
[1767370470631,0.71605012,129.75,129.7,26.9853508]
[1767370470824,0.68209628,129.76,129.71,15.0]
[1767370471225,5.7230085,129.75,129.71,15.0]
[1767370471449,6.40510478,129.75,129.71,15.0]
[1767370471930,5.7230085,129.74,129.7,26.9853508]
[1767370472556,2.13754611,129.74,129.7,26.9853508]
[1767370472943,0.68209628,129.73,129.7,7.71010023]
[1767370473148,2.81964239,129.73,129.7,7.71010023]
[1767370473826,2.81964239,129.72,129.7,7.71010023]
[1767370474037,0.68209628,129.7,129.66,19.28023122]
[1767370474236,2.81964239,129.7,129.66,19.28023122]
[1767370474535,9.99192412,129.7,129.66,19.28023122]
[1767370474946,9.99192412,129.7,129.66,26.99271001]
[1767370475153,9.30982784,129.71,129.66,26.99271001]
[1767370475335,9.99192412,129.71,129.66,26.99271001]
[1767370476133,0.68209628,129.71,129.66,26.99271001]
[1767370476451,9.99192412,129.71,129.67,15.0]
[1767370476834,0.68209628,129.71,129.67,15.0]
[1767370477157,9.99192412,129.71,129.66,36.30253785]
[1767370477649,9.99192412,129.71,129.66,26.99271001]
[1767370477842,9.99192412,129.71,129.66,36.30253785]
[1767370478032,0.68209628,129.71,129.66,36.30253785]
[1767370478228,0.68209628,129.71,129.67,24.30982784]
[1767370478432,0.68209628,129.72,129.67,24.30982784]
[1767370478852,21.78734431,129.75,129.67,24.30982784]
[1767370478853,0.68209628,129.74,129.68,9.30982784]
[1767370479055,9.99192412,129.73,129.68,9.30982784]